[Event "Gibraltar Challengers A 2019"]
[Site "Caleta"]
[Date "2019.01.21"]
[Round "1"]
[White "Adewole, Adeyinka"]
[Black "Lim, Zhuo Ren"]
[Result "0-1"]
[ECO "E17"]
[WhiteElo "1972"]
[BlackElo "2178"]
[Annotator "NA"]
[PlyCount "110"]
[EventDate "2019.01.21"]
[EventType "swiss"]
[EventCountry "GGB"]
[SourceTitle "playchess.com"]
[Source "ChessBase"]
[SourceQuality "1"]
[TimeControl "6600+10"]

1. c4 {[%emt 0:47:14]} Nf6 {[%emt 0:00:35]} 2. Nf3 {[%emt 0:00:11]} e6 {[%emt 0:01:04]} 3. g3 {[%emt 0:00:49]} d5 {[%emt 0:00:17]} 4. Bg2 {[%emt 0:00:31]} Be7 {[%emt 0:00:18]} 5. O-O {[%emt 0:00:28]} O-O {[%emt 0:00:08]} 6. b3 {[%emt 0:00:14]} b6 {[%emt 0:00:45]} 7. d4 {[%emt 0:00:38]} Bb7 {[%emt 0:02:07]} 8. Ne5 {[%emt 0:01:05]} Nbd7 {[%emt 0:01:22]} 9. Bb2 {[%emt 0:02:05] E17: Queen's Indian: 4 g3 Bb7 5 Bg2 Be7} Nxe5 {[%emt 0:28:09]} (9... c5 10. cxd5 Nxd5 11. Nxd7 Qxd7 12. dxc5 Bxc5 13. a3 Rad8 14. b4 Be7 15. Qb3 Bf6 16. Rd1 Bxb2 17. Qxb2 {1-0 (34) Liu,Y (2505)-Ma,Z (2489) Tianjin 2018}) 10. dxe5 {[%emt 0:01:43]} Ne4 {[%emt 0:00:03]} 11. Qc2 {[%emt 0:01:22]} f5 {[%emt 0:08:30]} 12. Rd1 $146 {[%emt 0:00:51]} ({Predecessor:} 12. exf6 Bxf6 13. Bxe4 dxe4 14. Bxf6 Qxf6 15. Nc3 e5 16. Rad1 Rad8 17. Rxd8 Rxd8 18. Rd1 Rxd1+ 19. Nxd1 {½-½ (19) Czartoryski,P (2061)-Korbal,A (1994) Wroclaw 2007}) 12... Bc5 {[%emt 0:02:43]} 13. e3 {[%emt 0:00:24]} Qe7 {[%emt 0:05:54]} 14. Nd2 {[%emt 0:02:24]} c6 {[%emt 0:04:06]} 15. Nf1 {[%emt 0:01:13]} Ba3 {[%emt 0:06:04]} 16. Bd4 {[%emt 0:08:58]} c5 {[%emt 0:07:27]} 17. Bb2 {[%emt 0:07:22]} Bxb2 {[%emt 0:00:42]} 18. Qxb2 {[%emt 0:00:09]} dxc4 {[%emt 0:00:35]} 19. h4 {[%emt 0:02:23]} c3 {[%emt 0:01:27]} 20. Qc2 {[%emt 0:00:08]} Qc7 {[%emt 0:03:07]} 21. f3 {[%emt 0:01:58]} Nd2 {[%emt 0:00:51]} 22. Nxd2 {[%emt 0:01:49]} cxd2 {[%emt 0:00:05]} 23. f4 {[%emt 0:00:21]} Bxg2 {[%emt 0:00:35]} 24. Kxg2 {[%emt 0:00:12]} Rad8 {[%emt 0:01:29]} 25. Rxd2 {[%emt 0:00:18]} Rxd2+ {[%emt 0:00:02]} 26. Qxd2 {[%emt 0:00:19]} Rd8 {[%emt 0:00:04]} 27. Qc2 {[%emt 0:01:40]} Qc6+ {[%emt 0:00:26]} 28. Kf2 {[%emt 0:00:37]} Qd5 {[%emt 0:01:52]} 29. Re1 {[%emt 0:00:26]} Kf7 {[%emt 0:02:30]} 30. e4 {[%emt 0:05:59]} Qd4+ {[%emt 0:04:48]} 31. Kf3 {[%emt 0:04:04]} g6 {[%emt 0:01:03]} 32. exf5 {[%emt 0:02:47]} gxf5 {[%emt 0:00:05]} 33. Kg2 {[%emt 0:01:23]} h5 {[%emt 0:03:38]} 34. Qf2 {[%emt 0:01:11] [#]} Qxf2+ $19 {[%emt 0:03:59]} 35. Kxf2 {[%emt 0:00:02]} Rd2+ {[%emt 0:00:03]} 36. Re2 {[%emt 0:00:10]} Rxe2+ {[%emt 0:00:04]} 37. Kxe2 {[%emt 0:00:24]} Ke7 {[%emt 0:00:20]} 38. a4 {[%emt 0:00:34]} a6 {[%emt 0:00:14]} 39. Kd3 {[%emt 0:00:18]} Kd7 {[%emt 0:00:08]} 40. Kc3 {[%emt 0:06:50]} Kc6 {[%emt 0:03:26]} 41. Kd3 {[%emt 0:08:15]} Kd5 {[%emt 0:00:55]} 42. Ke3 {[%emt 0:01:57]} b5 {[%emt 0:00:49]} 43. a5 {[%emt 0:03:48]} c4 {[%emt 0:08:15]} 44. b4 {[%emt 0:01:54]} c3 {[%emt 0:00:13]} 45. Kd3 {[%emt 0:00:33]} c2 {[%emt 0:00:05]} 46. Kxc2 {[%emt 0:00:44]} Ke4 {[%emt 0:00:02]} 47. Kc3 {[%emt 0:08:33]} Ke3 {[%emt 0:00:47]} 48. g4 {[%emt 0:04:47]} hxg4 {[%emt 0:00:09]} 49. h5 {[%emt 0:00:24]} g3 {[%emt 0:00:02]} 50. h6 {[%emt 0:00:11]} g2 {[%emt 0:00:02]} 51. h7 {[%emt 0:00:14]} g1=Q {[%emt 0:00:03]} 52. h8=Q {[%emt 0:00:29]} Qc1+ {[%emt 0:00:02]} 53. Kb3 {[%emt 0:00:23]} Qc4+ {[%emt 0:00:03]} 54. Ka3 {[%emt 0:00:20]} Qc3+ {[%emt 0:00:01]} 55. Ka2 {[%emt 0:01:11]} Qc2+ {[%emt 0:00:02]} 0-1

[Event "Gibraltar Challengers A 2019"]
[Site "Caleta"]
[Date "2019.01.21"]
[Round "1"]
[White "Cano Sevilla, Ivan"]
[Black "Tworzydlo, Piotr"]
[Result "1/2-1/2"]
[ECO "D00"]
[WhiteElo "1950"]
[BlackElo "2165"]
[Annotator "NA"]
[PlyCount "72"]
[EventDate "2019.01.21"]
[EventType "swiss"]
[EventCountry "GGB"]
[SourceTitle "playchess.com"]
[Source "ChessBase"]
[SourceQuality "1"]
[TimeControl "6600+10"]

1. d4 {[%emt 0:00:00]} Nf6 {[%emt 0:00:00]} 2. Bf4 {[%emt 0:00:07]} g6 {[%emt 0:00:46]} 3. Nc3 {[%emt 0:00:04]} d5 {[%emt 0:02:26]} 4. Nf3 {[%emt 0:00:36]} Bg7 {[%emt 0:00:16]} 5. e3 {[%emt 0:00:13]} O-O {[%emt 0:00:32]} 6. Be2 {[%emt 0:00:50]} c5 {[%emt 0:04:59]} 7. O-O {[%emt 0:00:55]} b6 {[%emt 0:05:15] LiveBook: 4 Games D00: 1 d4 d5: Unusual lines} (7... cxd4 8. exd4 Bg4 9. h3 Bxf3 10. Bxf3 Nc6 11. Ne2 b5 12. c3 e6 13. a3 a5 14. Nc1 b4 15. a4 Ne4 16. Bxe4 dxe4 {½-½ (85) Carlsen,M (2837)-Ding,L (2774) Saint Louis 2017}) 8. a4 {[%emt 0:00:19]} Nc6 {[%emt 0:02:40]} 9. Ne5 {[%emt 0:01:34]} Bb7 {[%emt 0:03:45]} 10. h3 $146 {[%emt 0:09:28]} ({Predecessor:} 10. Qd2 Nxe5 11. Bxe5 e6 12. a5 Qd7 13. Rfd1 Rfd8 14. Ra3 Bc6 15. Bf3 {1-0 (58) Wegerle,J (2446)-Santos,J (2283) Porto 2016}) 10... Na5 {[%emt 0:13:24]} 11. Bf3 {[%emt 0:06:16]} Rc8 {[%emt 0:03:27]} 12. Re1 {[%emt 0:04:28]} Ne4 {[%emt 0:12:23]} 13. Nxe4 {[%emt 0:05:08]} dxe4 {[%emt 0:00:09]} 14. Be2 {[%emt 0:00:20]} cxd4 {[%emt 0:06:08]} 15. exd4 {[%emt 0:00:14]} Nc6 {[%emt 0:04:37]} 16. Nxc6 {[%emt 0:00:18]} Rxc6 {[%emt 0:00:19]} 17. c3 {[%emt 0:00:19]} e5 {[%emt 0:05:53]} 18. dxe5 {[%emt 0:02:03]} Qe7 {[%emt 0:00:58]} 19. Bb5 {[%emt 0:01:06]} Rd8 {[%emt 0:08:05]} 20. Qg4 {[%emt 0:05:33]} Rc5 {[%emt 0:02:44]} 21. Bg5 {[%emt 0:02:34]} f6 {[%emt 0:00:10]} 22. exf6 {[%emt 0:00:03]} Bxf6 {[%emt 0:00:10]} 23. Be3 {[%emt 0:02:18]} Rcc8 {[%emt 0:07:17]} 24. Rad1 {[%emt 0:00:59]} a6 {[%emt 0:07:12]} 25. Bd7 {[%emt 0:02:34]} Rc5 {[%emt 0:05:38]} 26. Bxc5 $18 {[%emt 0:00:39]} Qxc5 {[%emt 0:00:19]} 27. Qe6+ {[%emt 0:05:18]} Kg7 {[%emt 0:00:03]} 28. Be8 {[%emt 0:01:01]} Bd5 {[%emt 0:01:44]} 29. Rxd5 {[%emt 0:02:52]} Qxd5 {[%emt 0:00:03]} 30. Qxd5 {[%emt 0:00:10]} Rxd5 {[%emt 0:00:02]} 31. Bc6 {[%emt 0:11:00]} Rd2 {[%emt 0:00:27]} 32. Rb1 {[%emt 0:00:26]} Be7 {[%emt 0:02:09]} 33. Bxe4 {[%emt 0:04:17]} Bc5 {[%emt 0:00:17]} 34. b4 {[%emt 0:01:12]} Bxf2+ {[%emt 0:00:15]} 35. Kh2 {[%emt 0:07:51]} Ra2 {[%emt 0:00:08]} 36. Bc6 {[%emt 0:00:02]} Rc2 {[%emt 0:00:10]} 1/2-1/2

[Event "Gibraltar Challengers A 2019"]
[Site "Caleta"]
[Date "2019.01.21"]
[Round "1"]
[White "Brown, David"]
[Black "Bengherabi, Khalil"]
[Result "0-1"]
[ECO "B76"]
[WhiteElo "1931"]
[BlackElo "2150"]
[Annotator "NA"]
[PlyCount "52"]
[EventDate "2019.01.21"]
[EventType "swiss"]
[EventCountry "GGB"]
[SourceTitle "playchess.com"]
[Source "ChessBase"]
[SourceQuality "1"]
[TimeControl "6600+10"]

1. e4 {[%emt 0:00:00]} c5 {[%emt 0:00:00]} 2. Ne2 {[%emt 0:00:06]} d6 {[%emt 0:00:38]} 3. Nbc3 {[%emt 0:00:24]} g6 {[%emt 0:00:19]} 4. d4 {[%emt 0:00:56]} cxd4 {[%emt 0:00:07]} 5. Nxd4 {[%emt 0:00:04]} Bg7 {[%emt 0:00:08]} 6. Be3 {[%emt 0:00:49]} Nf6 {[%emt 0:00:08]} 7. Qd2 {[%emt 0:00:48]} Nc6 {[%emt 0:00:18]} 8. f3 {[%emt 0:02:04]} O-O {[%emt 0:00:07]} 9. O-O-O {[%emt 0:01:50]} d5 {[%emt 0:00:19]} 10. exd5 {[%emt 0:08:27]} Nxd5 {[%emt 0:00:09]} 11. Nxc6 {[%emt 0:05:00]} bxc6 {[%emt 0:00:06]} 12. Nxd5 {[%emt 0:02:40]} cxd5 {[%emt 0:00:06]} 13. Qxd5 {[%emt 0:01:39]} Qc7 {[%emt 0:00:07]} 14. Qc5 {[%emt 0:01:33]} Qb7 {[%emt 0:00:05] LiveBook: 181 Games} 15. b3 {[%emt 0:04:13]} Bf5 {[%emt 0:01:03] B76: Sicilian Dragon: Yugoslav Attack, 9 g4 and 9 0-0-0} 16. Bc4 {[%emt 0:12:19]} (16. Bd3 Rac8 17. Qa5 Rc3 18. Bxf5 Rxe3 19. Be4 Qc8 20. g4 Qb8 21. Kb1 Qf4 22. Rd8 Bc3 23. Rxf8+ Kxf8 24. Qxa7 Re2 25. a3 Qxh2 26. Rd1 {½-½ (26) Kribben,M (2652)-Lecroq,M (2609) ICCF email 2011}) 16... Rac8 {[%emt 0:13:03]} 17. Qa3 $1 {[%emt 0:04:04]} ({But not} 17. Qxa7 $2 {[#]} Rxc4 $1 {[%mdl 512]} 18. Rd2 (18. Qxb7 $2 {is a self mate.} Rxc2+ {[%mdl 64] Double Attack} 19. Kb1 Rc6+ 20. Rd3 Bxd3#) 18... Qb4 $1 $19 {[%mdl 512]}) 17... Qc7 {[%emt 0:05:08]} 18. Rd5 {[%emt 0:22:01]} e6 $146 {[%emt 0:13:16]} ({Predecessor:} 18... Qc6 19. Rhd1 Qf6 20. R5d4 Qe5 21. Bf4 Qf6 22. Qa5 Qh4 23. Bg3 Qxd4 24. Rxd4 Bxd4 {1-0 (49) Tormos,M-Vidal Gonzalez,A Orense 1997}) 19. Ra5 {[%emt 0:01:52]} Bc3 {[%emt 0:13:42]} 20. Rc5 {[%emt 0:12:36]} ({But not} 20. Rxa7 $2 Qe5 $19) 20... Qb6 $2 {[%emt 0:00:52] [#]} (20... Qe7 $1 $11) 21. Re5 $2 {[%emt 0:02:13]} ({White must play} 21. Kb1 $1 $16 Bb4 22. Rxc8 Qxe3 23. Qxb4 (23. Rxf8+ Bxf8 24. Qa6 Qf2 $14) 23... Rxc8 24. Rd1) 21... Qd8 $15 {[%emt 0:05:58]} 22. Rc5 {[%emt 0:02:30]} Qf6 {[%emt 0:19:18]} 23. Rd1 {[%emt 0:04:46]} Rb8 {[%emt 0:02:38]} 24. Rb5 {[%emt 0:09:18]} Rbd8 {[%emt 0:00:04]} 25. Rxd8 {[%emt 0:07:06]} Rxd8 {[%emt 0:00:07]} 26. Qxa7 {[%emt 0:00:09]} Bb2+ {[%emt 0:00:16]} 0-1

[Event "Gibraltar Challengers A 2019"]
[Site "Caleta"]
[Date "2019.01.21"]
[Round "1"]
[White "Obiamiwe, Paul"]
[Black "Jordan Martinez, Miguel"]
[Result "0-1"]
[ECO "E94"]
[WhiteElo "1903"]
[BlackElo "2142"]
[Annotator "NA"]
[PlyCount "94"]
[EventDate "2019.01.21"]
[EventType "swiss"]
[EventCountry "GGB"]
[SourceTitle "playchess.com"]
[Source "ChessBase"]
[SourceQuality "1"]
[TimeControl "6600+10"]

1. Nf3 {[%emt 0:00:00]} Nf6 {[%emt 0:00:18]} 2. c4 {[%emt 0:00:05]} d6 {[%emt 0:00:37]} 3. d4 {[%emt 0:00:07]} Nbd7 {[%emt 0:00:25]} 4. Nc3 {[%emt 0:00:15]} g6 {[%emt 0:00:31]} 5. e4 {[%emt 0:00:47]} Bg7 {[%emt 0:00:54]} 6. Be2 {[%emt 0:00:11]} e5 {[%emt 0:00:55]} 7. O-O {[%emt 0:00:42]} O-O {[%emt 0:00:21]} 8. Bg5 {[%emt 0:07:33]} h6 {[%emt 0:00:57]} 9. Bh4 {[%emt 0:04:04]} g5 {[%emt 0:01:20]} 10. Bg3 {[%emt 0:00:03]} Nh5 {[%emt 0:03:39]} 11. dxe5 {[%emt 0:11:11]} Nxg3 {[%emt 0:03:09]} 12. hxg3 {[%emt 0:00:14]} Nxe5 {[%emt 0:02:42]} 13. Nd4 {[%emt 0:03:41] E94: King's Indian: Classical: 6 Be2 e5 7 0-0: Various Black 7th moves} Nc6 {[%emt 0:01:05]} 14. Nf3 $146 {[%emt 0:01:44]} ({Predecessor:} 14. Nc2 Bxc3 15. bxc3 Qe7 16. Ne3 Qxe4 17. Nd5 Qg6 18. Nxc7 Rb8 19. f4 g4 20. Nd5 Bf5 21. Bxg4 Bxg4 22. Qxg4 Qxg4 {1-0 (29) Pliester,L (2380)-Van Wessel,R Groningen 1994}) 14... Be6 {[%emt 0:08:36]} 15. Rc1 {[%emt 0:00:12]} g4 {[%emt 0:12:42]} 16. Nh4 {[%emt 0:07:38]} Qg5 {[%emt 0:03:12]} 17. b3 {[%emt 0:04:02]} Nd4 {[%emt 0:01:31]} 18. Bd3 {[%emt 0:01:01]} c6 {[%emt 0:02:57]} 19. Ne2 {[%emt 0:01:07]} Rad8 {[%emt 0:04:22]} 20. Bb1 {[%emt 0:02:46]} c5 {[%emt 0:09:11]} 21. Nxd4 {[%emt 0:04:11]} Bxd4 {[%emt 0:00:59]} 22. Qd3 {[%emt 0:00:19]} Rfe8 {[%emt 0:09:08]} 23. Rcd1 {[%emt 0:01:14]} Qg7 {[%emt 0:07:51]} 24. Kh2 {[%emt 0:01:26]} Bd7 {[%emt 0:01:44]} 25. a4 {[%emt 0:05:03]} Re5 {[%emt 0:02:41]} 26. Nf5 {[%emt 0:03:36]} Bxf5 $1 {[%emt 0:01:05]} 27. exf5 {[%emt 0:00:07]} Rde8 $17 {[%emt 0:01:06]} 28. Rd2 {[%emt 0:08:19]} Qg5 {[%emt 0:01:00]} 29. Qc2 {[%emt 0:12:40]} Re1 {[%emt 0:02:44]} 30. Rd1 {[%emt 0:01:14]} R1e2 {[%emt 0:00:24]} 31. Qc1 {[%emt 0:06:29]} Qxc1 {[%emt 0:05:37]} 32. Rxc1 {[%emt 0:00:01]} Rxf2 {[%emt 0:00:21]} 33. Rxf2 {[%emt 0:09:09]} Bxf2 {[%emt 0:00:02]} 34. Rf1 {[%emt 0:00:24]} Bd4 {[%emt 0:00:03]} 35. Bc2 {[%emt 0:00:47]} f6 {[%emt 0:01:53]} 36. Rf4 {[%emt 0:01:34]} h5 {[%emt 0:00:08]} 37. Re4 {[%emt 0:00:12]} Be5 {[%emt 0:00:49]} 38. Kg1 {[%emt 0:00:42]} Kg7 {[%emt 0:02:59]} 39. Kf1 {[%emt 0:00:26]} Rd8 {[%emt 0:00:22]} 40. Kf2 {[%emt 0:00:13]} Kh6 {[%emt 0:01:27]} 41. Re2 {[%emt 0:04:21]} d5 {[%emt 0:00:04]} 42. cxd5 {[%emt 0:02:11]} Rxd5 {[%emt 0:00:06]} 43. Be4 {[%emt 0:00:35]} Rd7 {[%emt 0:00:10]} 44. Rc2 {[%emt 0:00:42]} b6 {[%emt 0:00:33]} 45. Ra2 {[%emt 0:02:01]} Rd4 {[%emt 0:02:46]} 46. Re2 {[%emt 0:00:07]} Kg5 {[%emt 0:00:31]} 47. Bc2 {[%emt 0:00:02]} a6 {[%emt 0:00:33]} 0-1

[Event "Gibraltar Challengers A 2019"]
[Site "Caleta"]
[Date "2019.01.21"]
[Round "1"]
[White "Erdogan, Hassan"]
[Black "Ramasindraibe, Girard"]
[Result "1-0"]
[ECO "A48"]
[WhiteElo "1833"]
[BlackElo "2129"]
[Annotator "NA"]
[PlyCount "135"]
[EventDate "2019.01.21"]
[EventType "swiss"]
[EventCountry "GGB"]
[SourceTitle "playchess.com"]
[Source "ChessBase"]
[SourceQuality "1"]
[TimeControl "6600+10"]

1. d4 {[%emt 0:00:00]} Nf6 {[%emt 0:00:35]} 2. Bf4 {[%emt 0:00:05]} g6 {[%emt 0:02:33]} 3. e3 {[%emt 0:01:43]} Bg7 {[%emt 0:00:11]} 4. Nf3 {[%emt 0:02:59]} d6 {[%emt 0:00:10]} 5. Nbd2 {[%emt 0:02:01]} Nh5 {[%emt 0:00:10]} 6. Bg3 {[%emt 0:02:54] A48: 1 d4 Nf6 2 Nf3 g6: Torre, London and Colle Systems} O-O {[%emt 0:01:19]} 7. Be2 {[%emt 0:06:03]} Nd7 {[%emt 0:02:27]} 8. O-O {[%emt 0:01:42]} e5 {[%emt 0:00:50]} 9. c3 {[%emt 0:08:27]} Nxg3 {[%emt 0:00:57]} 10. hxg3 {[%emt 0:00:10]} Qe7 {[%emt 0:00:24]} 11. Qc2 $146 {[%emt 0:20:05]} ({Predecessor:} 11. a4 e4 12. Nh2 a5 13. Rc1 h6 14. b4 c6 {0-1 (45) Toth,T (1994)-Hardicsay,P (2316) Hungary 2006}) 11... Kh8 {[%emt 0:02:22]} 12. dxe5 {[%emt 0:04:42]} Nxe5 {[%emt 0:00:38]} 13. Nxe5 {[%emt 0:04:06]} Qxe5 {[%emt 0:00:14]} 14. Nf3 {[%emt 0:00:37]} Qc5 {[%emt 0:00:32]} 15. Nd4 {[%emt 0:02:21]} a6 {[%emt 0:00:21]} 16. a4 {[%emt 0:03:31]} Rb8 {[%emt 0:00:41]} 17. Rfd1 {[%emt 0:07:12]} Bd7 {[%emt 0:00:25]} 18. a5 {[%emt 0:10:03]} Qe5 {[%emt 0:01:16]} 19. Bf3 {[%emt 0:04:34]} Bf6 {[%emt 0:02:50]} 20. Qe4 {[%emt 0:02:31]} Kg7 {[%emt 0:01:22]} 21. Qxe5 {[%emt 0:00:47]} Bxe5 {[%emt 0:00:03]} 22. Be2 {[%emt 0:02:31]} h5 {[%emt 0:00:16]} 23. Rab1 {[%emt 0:00:54]} Rh8 {[%emt 0:01:31]} 24. Nf3 {[%emt 0:05:33]} Bf6 {[%emt 0:00:04]} 25. c4 {[%emt 0:00:59]} Rbd8 {[%emt 0:01:44]} 26. b4 {[%emt 0:00:20]} Ba4 {[%emt 0:03:10]} 27. Rdc1 {[%emt 0:00:52]} Bd7 {[%emt 0:02:54]} 28. b5 {[%emt 0:00:40]} Bf5 {[%emt 0:00:36]} 29. Rb3 {[%emt 0:00:24]} Rb8 {[%emt 0:07:09]} 30. Nd4 {[%emt 0:00:41]} Bd7 {[%emt 0:02:00]} 31. Rcb1 {[%emt 0:06:22]} axb5 {[%emt 0:01:06]} 32. cxb5 {[%emt 0:00:23]} Rhe8 {[%emt 0:00:11]} 33. Kf1 {[%emt 0:01:32]} h4 {[%emt 0:06:41]} 34. gxh4 {[%emt 0:00:28]} Bxh4 {[%emt 0:00:11]} 35. Bf3 $16 {[%emt 0:00:39]} Re5 {[%emt 0:01:54]} 36. a6 {[%emt 0:00:27]} bxa6 {[%emt 0:00:21]} 37. bxa6 {[%emt 0:00:02]} Rxb3 {[%emt 0:00:17]} 38. Rxb3 {[%emt 0:00:06]} Ra5 {[%emt 0:00:07]} 39. g3 {[%emt 0:00:42]} Bf6 {[%emt 0:01:28]} 40. Rb7 {[%emt 0:01:16]} Bh3+ {[%emt 0:00:19]} 41. Ke2 {[%emt 0:00:21]} c5 {[%emt 0:00:17]} 42. Bd5 {[%emt 0:01:26]} cxd4 {[%emt 0:02:06]} 43. Rxf7+ {[%emt 0:00:02]} Kh6 {[%emt 0:01:45]} 44. a7 {[%emt 0:00:32]} d3+ {[%emt 0:01:45]} 45. Kd2 {[%emt 0:00:01]} Bc3+ {[%emt 0:02:49]} 46. Kxc3 {[%emt 0:00:13]} d2 {[%emt 0:00:02]} 47. Bf3 {[%emt 0:01:46]} Bg2 {[%emt 0:00:59]} 48. Kxd2 {[%emt 0:00:17]} Bxf3 {[%emt 0:00:35]} 49. Rxf3 {[%emt 0:00:01]} Rxa7 {[%emt 0:00:20]} 50. Kd3 {[%emt 0:00:01]} Kg5 {[%emt 0:02:07]} 51. Kd4 {[%emt 0:00:16]} Ra5 {[%emt 0:00:06]} 52. Rf8 {[%emt 0:00:19]} Rb5 {[%emt 0:07:03]} 53. f3 {[%emt 0:00:41]} Rb1 {[%emt 0:00:55]} 54. Ke4 {[%emt 0:00:36]} Rd1 {[%emt 0:00:25]} 55. f4+ {[%emt 0:00:39]} Kg4 {[%emt 0:00:09]} 56. Rg8 {[%emt 0:00:01]} Kxg3 {[%emt 0:00:12]} 57. Rxg6+ {[%emt 0:00:01]} Kf2 {[%emt 0:00:17]} 58. f5 {[%emt 0:00:02]} Rh1 {[%emt 0:02:40]} 59. f6 {[%emt 0:00:01]} Rh4+ {[%emt 0:00:16]} 60. Kd5 {[%emt 0:00:01]} Kxe3 {[%emt 0:00:32]} 61. Kxd6 {[%emt 0:00:02]} Rd4+ {[%emt 0:01:15]} 62. Ke7 {[%emt 0:00:01]} Re4+ {[%emt 0:01:29]} 63. Kf7 {[%emt 0:00:01]} Kf4 {[%emt 0:00:52]} 64. Kg7 {[%emt 0:00:01]} Kf5 {[%emt 0:01:12]} 65. f7 {[%emt 0:00:05]} Re7 {[%emt 0:00:02]} 66. Rf6+ {[%emt 0:00:05]} Kg5 {[%emt 0:00:58]} 67. Rf1 {[%emt 0:00:03]} Ra7 {[%emt 0:01:11]} 68. Kg8 {[%emt 0:00:03]} 1-0

[Event "Gibraltar Challengers A 2019"]
[Site "Caleta"]
[Date "2019.01.21"]
[Round "1"]
[White "Hestvik, Elias"]
[Black "Alarcon Olmos, Daniel"]
[Result "0-1"]
[ECO "B32"]
[WhiteElo "1740"]
[BlackElo "2124"]
[Annotator "NA"]
[PlyCount "59"]
[EventDate "2019.01.21"]
[EventType "swiss"]
[EventCountry "GGB"]
[SourceTitle "playchess.com"]
[Source "ChessBase"]
[SourceQuality "1"]
[TimeControl "6600+10"]

1. e4 {[%emt 0:00:11]} c5 {[%emt 0:00:00]} 2. Nf3 {[%emt 0:00:10]} Nc6 {[%emt 0:00:00]} 3. d4 {[%emt 0:02:29]} cxd4 {[%emt 0:00:00]} 4. Nxd4 {[%emt 0:00:11]} e5 {[%emt 0:00:00]} 5. Nb5 {[%emt 0:00:23]} a6 {[%emt 0:00:00]} 6. Nd6+ {[%emt 0:02:41]} Bxd6 {[%emt 0:00:02]} 7. Qxd6 {[%emt 0:00:12]} Qf6 {[%emt 0:00:00]} 8. Qd3 {[%emt 0:07:53] B32: Sicilian: Löwenthal and Kalashnikov Variations} (8. Qd1 Qg6 9. Nc3 Nge7 10. h4 h5 11. Be3 d5 12. exd5 Nb4 13. Bd3 Nxd3+ 14. Qxd3 Qxd3 15. cxd3 Bf5 16. Bc5 Rd8 17. d6 Nc8 18. O-O-O Nxd6 {½-½ (57) Van Foreest,J (2638)-Wirig,A (2504) Brest 2018}) 8... Qg6 {[%emt 0:02:42]} 9. g3 {[%emt 0:05:14]} d5 $146 {[%emt 0:08:23]} ({Predecessor:} 9... Nf6 10. Bg2 O-O 11. O-O d5 12. exd5 Qxd3 13. cxd3 Nb4 14. Nc3 Nxd3 15. b3 Nxc1 16. Raxc1 {1-0 (47) Vergara Jofre,F (2077)-Huanca Perez,J (1466) Antofagasta 2015}) 10. Bg2 {[%emt 0:05:46]} Nf6 {[%emt 0:00:42]} 11. Nd2 {[%emt 0:05:14]} Be6 {[%emt 0:02:20]} 12. O-O {[%emt 0:07:00]} O-O {[%emt 0:00:27]} 13. Re1 {[%emt 0:14:59]} Rac8 {[%emt 0:02:52]} 14. c3 {[%emt 0:09:34]} Rfd8 {[%emt 0:02:48]} 15. Qe2 {[%emt 0:06:18]} d4 {[%emt 0:02:51]} 16. Nf3 {[%emt 0:06:02]} Bg4 {[%emt 0:08:45]} 17. h3 {[%emt 0:05:44]} Bxf3 {[%emt 0:01:19]} 18. Qxf3 {[%emt 0:01:53]} dxc3 {[%emt 0:00:00]} 19. bxc3 {[%emt 0:01:04]} Na5 {[%emt 0:03:05]} 20. Rb1 {[%emt 0:04:49]} b5 {[%emt 0:01:50]} 21. a4 $11 {[%emt 0:06:58]} bxa4 {[%emt 0:06:12]} 22. Rb4 {[%emt 0:01:06]} Ne8 {[%emt 0:09:02]} 23. Rxa4 {[%emt 0:01:17]} Nb3 {[%emt 0:01:43]} 24. Bf1 {[%emt 0:03:01]} Nc5 {[%emt 0:03:15]} 25. Ra3 {[%emt 0:02:13]} Rc6 {[%emt 0:06:22]} 26. Bc4 {[%emt 0:02:04]} Rf6 {[%emt 0:08:00]} 27. Qe2 {[%emt 0:01:29]} Nc7 {[%emt 0:02:47]} 28. Ra5 {[%emt 0:02:52]} Nxe4 {[%emt 0:05:41]} 29. Rxe5 {[%emt 0:01:01]} Rxf2 {[%emt 0:12:24]} 30. Qg4 {[%emt 0:04:19]} 0-1